Cogmind - Beta 10.2 @@@ ROGUE MODE // 2021.04.17 @ 19:04:50 Player: Gobbopathe Result: Destroyed by 8R-AWN with 8R-AWN's Boregun Performance ------------- Evolutions (0) 0 Regions Visited (3) 600 Robots Destroyed (5) 25 Value Destroyed (16) 16 Prototype IDs (4) 80 Alien Tech Used (0) 0 Bonus (35) 35 TOTAL SCORE: 756 Bonus ------- Aligned with FarCom 300 Friendly Fire -265 Cogmind --------- Core Integrity 0/250 Matter 181/300 Energy 218/250 System Corruption 0% Temperature Cool (255) Movement Rolling (110) Ox1 Location -10/Exiles Parts ------- > --- POWER (1) -------- Ion Engine > --- PROPULSION (2) --- Compact Wheel Compact Wheel > --- UTILITY (2) ------ Large Storage Unit High-capacity Storage Unit > --- WEAPON (2) ------- Heavy Battle Rifle > --- INVENTORY (18) --- Ion Engine Cooling System Large Storage Unit Improved Terrain Scanner Medium Laser Autogun Datajack Field Lobotomy Kit Mining Laser Peak State ------------ > --- POWER ------------ Ion Engine > --- PROPULSION ------- Compact Wheel Compact Wheel > --- UTILITY ---------- Large Storage Unit High-capacity Storage Unit > --- WEAPON ----------- Autogun Field Lobotomy Kit > --- INVENTORY -------- Ion Engine Compact Wheel Compact Wheel Cooling System Large Storage Unit Improved Terrain Scanner EM Pulse Gun Medium Laser Beamcaster Autogun Heavy Battle Rifle Datajack Mining Laser [Rating: 19] Favorites ----------- Power Ion Engine Engine Ion Engine Propulsion Compact Wheel Wheel Compact Wheel Utility High-capacity Storage Unit Device Improved Terrain Scanner Storage High-capacity Storage Unit Weapon Autogun Energy Gun Medium Laser Ballistic Gun Autogun Special Weapon Field Lobotomy Kit Slashing Weapon Longsword +1 Build | -11 -10 -10 -10 ------- Run | Scr Mat Min Exi Slots Evolved . | . . . . Power . | . . . . Propulsion . | . . . . Utility . | . . . . Weapon . | . . . . Parts Attached 21 | 7 4 . 10 Power 1 | 1 . . . Engine 1 | 1 . . . Core . | . . . . Reactor . | . . . . Propulsion 4 | 2 . . 2 Treads . | . . . . Leg . | . . . . Wheel 4 | 2 . . 2 Hover . | . . . . Flight . | . . . . Utility 6 | 2 3 . 1 Device 1 | 1 . . . Storage 5 | 1 3 . 1 Processor . | . . . . Hackware . | . . . . Protection . | . . . . Artifact . | . . . . Weapon 10 | 2 1 . 7 Energy Gun 3 | 1 . . 2 Energy Cannon . | . . . . Ballistic Gun 4 | 1 1 . 2 Ballistic Cannon . | . . . . Launcher . | . . . . Special Weapon 2 | . . . 2 Impact Weapon . | . . . . Slashing Weapon 1 | . . . 1 Piercing Weapon . | . . . . Special Melee Weapon . | . . . . Unidentified Prototypes 2 | . . . 2 Parts Lost 5 | . . . 5 Power . | . . . . Propulsion 2 | . . . 2 Utility . | . . . . Weapon 3 | . . . 3 Highest Loss Streak 5 | . . . 5 Average Slot Usage (%) 99 | . 100 100 99 Engine 14 | . 14 14 14 Wheel 27 | . 28 28 27 Device 6 | . 14 14 . Storage 21 | . 14 14 28 Energy Gun 9 | . 14 14 4 Ballistic Gun 18 | . 14 14 22 Naked Turns . | . . . . Heaviest Build 59 | 13 43 43 59 Greatest Support 32 | 32 32 32 32 Greatest Overweight (x) 1 | . 1 1 1 Average Overweight (x) . | . . 1 1 Largest Inventory Capacity 18 | 6 12 12 18 Average Capacity 13 | 5 8 12 18 Most Carried 13 | 4 10 12 13 Average Carried 10 | 1 7 11 12 Final Capacity 18 | 6 12 12 18 Final Carried 12 | 4 10 12 9 Class Distribution -------------------- 100% | Mutant Dominant Class ---------------- Mutant | -10/Materials Mutant | -10/Mines Mutant | -10/Exiles Resources | -11 -10 -10 -10 ----------- Run | Scr Mat Min Exi Matter Collected 356 | 277 47 32 . Remotely . | . . . . Salvage Created 257 | 85 56 80 36 Parts 13 | 5 4 4 . Haulers Intercepted 1 | . 1 . . Recyclers Shooed . | . . . . Parts Field Recycled . | . . . . Retrieved Matter . | . . . . Parts Self-Destructed . | . . . . Prevented . | . . . . Kills | -11 -10 -10 -10 ------- Run | Scr Mat Min Exi Combat Hostiles Destroyed 3 | . . . 3 Guns 3 | . . . 3 Classes Destroyed 6 | 2 1 2 1 Worker 1 | . . 1 . Tunneler 1 | 1 . . . Hauler 1 | . 1 . . Recycler 1 | 1 . . . Assembled 3 | . . . 3 Thug 1 | . . 1 . Best Kill Streak 3 | 2 1 1 3 Combat Bots Only 3 | . . . 3 Max Kills in Single Turn 1 | 1 1 1 1 Gunslinging . | . . . . Exploded . | . . . . Melee . | . . . . Uniques/NPCs Destroyed . | . . . . Combat | -11 -10 -10 -10 -------- Run | Scr Mat Min Exi Damage Taken 844 | . . . 844 Core 250 | . . . 250 Absorbed by Shields . | . . . . Core Remaining (%) 100 | 100 . . . Volleys Fired 33 | 7 7 8 11 Largest 2 | 2 2 2 2 Hottest 98 | 70 70 73 98 Shots Fired 64 | 14 14 16 20 Gun 63 | 14 14 16 19 Cannon . | . . . . Launcher . | . . . . Special 1 | . . . 1 Kinetic 33 | 7 7 8 11 Thermal 28 | 7 7 8 6 Explosive . | . . . . Electromagnetic 2 | . . . 2 Robot Hit Streak 5 | 3 3 5 2 Robot Miss Streak 4 | 2 4 3 2 Penetration Max . | . . . . Secondary Targets 2 | . . . 2 Max Gunslinging Chain 1 | . . . 1 Shots Hit Robots 35 | 7 6 11 11 Core Hits 19 | 4 2 5 8 Critical Hits . | . . . . Critical Kills . | . . . . Critical Parts Destroyed . | . . . . Melee Attacks . | . . . . Impact . | . . . . Slashing . | . . . . Piercing . | . . . . Sneak Attacks . | . . . . Combat Hostiles . | . . . . Follow-up Attacks . | . . . . Damage Inflicted 479 | 75 72 180 152 Guns 479 | 75 72 180 152 Cannons . | . . . . Explosions . | . . . . Melee . | . . . . Ramming . | . . . . Kinetic 205 | 24 22 91 68 Thermal 253 | 51 50 89 63 Explosive . | . . . . Electromagnetic 21 | . . . 21 Impact . | . . . . Slashing . | . . . . Piercing . | . . . . Highest Corruption . | . . . . Average Corruption . | . . . . Corruption Purged . | . . . . Overload Shots . | . . . . Overflow Damage . | . . . . Projectiles . | . . . . Explosions . | . . . . Melee . | . . . . Knockbacks . | . . . . Impact . | . . . . Kinetic . | . . . . Secondary . | . . . . Self-Inflicted Damage . | . . . . Shots . | . . . . Rammed . | . . . . Targets Rammed . | . . . . Kicked . | . . . . Crushed . | . . . . Highest Temperature 417 | 80 70 144 417 Average Temperature 116 | 37 26 67 261 Received Heat Transfer 200 | . . . 200 Effects 2 | . . . 2 Shutdowns 1 | . . . 1 Damage (major) 1 | . . . 1 Siege Activations . | . . . . Robots Corrupted . | . . . . Combat Hostiles . | . . . . Parts Fried . | . . . . Impact Corruptions . | . . . . Robots Melted . | . . . . Combat Hostiles . | . . . . Parts Melted . | . . . . Heat Transferred 666 | 148 148 259 111 Parts Sabotaged . | . . . . Parts Stolen . | . . . . Parts Stripped . | . . . . Power Chain Reactions . | . . . . Missiles Intercepted . | . . . . Alert | -11 -10 -10 -10 ------- Run | Scr Mat Min Exi Peak Influence 48 | 10 48 23 . Initial 18 | . 6 18 . Average 20 | 3 23 23 . Maximum Alert Level . | . . . . Low Security (%) 100 | 100 100 100 . Level 1 . | . . . . Level 2 . | . . . . Level 3 . | . . . . Level 4 . | . . . . Level 5 . | . . . . High Security . | . . . . Max Security . | . . . . Squads Dispatched 2 | . 2 . . Investigation 2 | . 2 . . Extermination . | . . . . Reinforcement . | . . . . Assault . | . . . . Garrison . | . . . . Intercept . | . . . . Construction Impeded . | . . . . Haulers Reinforced . | . . . . Stealth | -11 -10 -10 -10 --------- Run | Scr Mat Min Exi Distress Signals 1 | . 1 . . Communications Jammed . | . . . . Distress Signals . | . . . . Times Spotted 10 | . 2 . 8 Peak Tracking Total 9 | . 1 . 9 Tactical Retreats . | . . . . Traps | -11 -10 -10 -10 ------- Run | Scr Mat Min Exi Traps Triggered . | . . . . Indirectly . | . . . . Trap Hack Attempts . | . . . . Triggered . | . . . . Disarmed . | . . . . Reprogrammed . | . . . . Reused . | . . . . Traps Extracted . | . . . . Installed . | . . . . Triggered . | . . . . Machines | -11 -10 -10 -10 ---------- Run | Scr Mat Min Exi Machines Disabled 4 | . . . 4 Max in Single Turn 1 | . . . 1 Machines Sabotaged . | . . . . Garrisons Compromised . | . . . . Overloaded Fab Kills . | . . . . Fab Network Shutdowns . | . . . . Hacking | -11 -10 -10 -10 --------- Run | Scr Mat Min Exi Machines Accessed 7 | . 3 . 4 Terminals 2 | . 2 . . Fabricators . | . . . . Repair Stations . | . . . . Recycling Units 1 | . 1 . . Scanalyzers . | . . . . Garrison Access . | . . . . Total Hacks 57 | . 8 . 49 Successful 54 | . 5 . 49 Failed 3 | . 3 . . Catastrophic . | . . . . Database Lockouts . | . . . . Manual 5 | . 4 . 1 Terminals 7 | . 7 . . Fabricators . | . . . . Repair Stations . | . . . . Recycling Units 1 | . 1 . . Scanalyzers . | . . . . Garrison Access . | . . . . Terminal Hacks 51 | . 2 . 49 Record 49 | . . . 49 Prototype ID Bank 1 | . 1 . . Terminal Index 1 | . 1 . . Fabricator Hacks . | . . . . Repair Station Hacks . | . . . . Recycling Unit Hacks 1 | . 1 . . Report Inventory 1 | . 1 . . Scanalyzer . | . . . . Garrison Access Hacks . | . . . . Unauthorized Hacks 2 | . 2 . . Terminals 2 | . 2 . . Assimilate 1 | . 1 . . Botnet 1 | . 1 . . Fabricators . | . . . . Repair Stations . | . . . . Recycling Units . | . . . . Scanalyzers . | . . . . Garrison Access . | . . . . Data Cores Recovered . | . . . . Used . | . . . . Hacking Detections 2 | . 2 . . Full Trace Events . | . . . . Feedback Events . | . . . . Feedback Blocked . | . . . . Robot Schematics Acquired . | . . . . Robots Built . | . . . . Matter . | . . . . Time . | . . . . Total Robot Build Rating . | . . . . Part Schematics Acquired . | . . . . Parts Built . | . . . . Matter . | . . . . Time . | . . . . Total Part Build Rating . | . . . . Parts Repaired . | . . . . Time . | . . . . Parts Recycled . | . . . . Recycled Matter . | . . . . Retrieved Matter . | . . . . Retrieved Components . | . . . . Parts Scanalyzed . | . . . . Part Schematics Acquired . | . . . . Parts Damaged . | . . . . Bothacking | -11 -10 -10 -10 ------------ Run | Scr Mat Min Exi Used RIF Installer . | . . . . Robots Hacked . | . . . . Non-combat . | . . . . Combat . | . . . . Robot Hacks Applied . | . . . . Relay Couplers Released . | . . . . Robots Rewired . | . . . . Allies Hacked . | . . . . Hacks Repelled . | . . . . Allies | -11 -10 -10 -10 -------- Run | Scr Mat Min Exi Total Allies 2 | . 1 1 . Largest Group 2 | . 1 2 2 Highest-Rated Group 41 | . 10 41 41 Highest-Rated Ally 31 | . 10 31 31 Total Orders . | . . . . Ally Attacks . | . . . . Total Damage . | . . . . Kills . | . . . . Allies Corrupted . | . . . . Allies Melted . | . . . . Intel | -11 -10 -10 -10 ------- Run | Scr Mat Min Exi Robot Analysis Total . | . . . . Derelict Logs Recovered 2 | . . 2 . Drone Launches . | . . . . Drone Recoveries . | . . . . Exploration | -11 -10 -10 -10 ------------- Run | Scr Mat Min Exi Turns Passed 1102 | 74 258 232 538 Spaces Moved 893 | 41 218 187 447 Core 1 | 1 . . . Treads . | . . . . Legs . | . . . . Wheels 892 | 40 218 187 447 Hover . | . . . . Flight . | . . . . Fastest Speed 50 | 50 100 110 110 Average Speed 107 | 98 102 110 110 Slowest Speed 110 | 100 110 110 110 Overloaded Moves . | . . . . Propulsion Burnouts . | . . . . Robots Hopped . | . . . . Cave-ins Triggered . | . . . . Exploration Rate (%) 39 | 4 43 30 82 Regions Visited 3 Branch Regions 2 Pre-discovered Areas 1 | . . . 1 Known Exits Taken . | . . . . Unknown Exits Taken 3 | 1 1 1 . Scrap Searched . | . . . . Spaces Dug . | . . . . Terrain Destroyed . | . . . . Melee . | . . . . Projectile . | . . . . AOE . | . . . . Terrain Rammed . | . . . . Walls Destroyed . | . . . . Machines Disabled . | . . . . Actions | -11 -10 -10 -10 --------- Run | Scr Mat Min Exi Total 970 | 58 240 199 473 Wait 3 | . . 1 2 Move 890 | 40 217 186 447 Hop . | . . . . Pick Up 15 | 4 7 3 1 Fast Attach 9 | 7 1 . 1 Attach 5 | . . . 5 Detach 1 | . . . 1 Swap 7 | . 3 . 4 Drop 7 | . 5 1 1 Fire 33 | 7 7 8 11 Melee . | . . . . Ram . | . . . . Kick . | . . . . Crush . | . . . . Escape Stasis . | . . . . Rewire . | . . . . Trap . | . . . . Miscellaneous . | . . . . Route ------- -11/Scrapyard -10/Materials (discovered 2 exits: [*Mat] / [*Min]) -10/Mines -10/Exiles (discovered 1 exit: [*Min]) History --------- Turn | Location | Event 12 | -11/Scrapyard | Discovered new exit (range 16) 75 | -11/Scrapyard | Entered Materials 297 | -10/Materials | Discovered new exit (range 14) 297 | -10/Materials | Discovered new exit (range 13) 310 | -10/Materials | Build established: Mutant 333 | -10/Materials | Entered Mines 333 | -10/Mines | Accompanied by 1 ally 362 | -10/Mines | Learned Materials garrison access intel 381 | -10/Mines | A weapon hastily lodged in a ceiling crevice suddenly fell to the ground 402 | -10/Mines | Learned Materials trap positions 451 | -10/Mines | Received a Mining Laser from a helpful Derelict 456 | -10/Mines | Met a Derelict bent on vengeance 486 | -10/Mines | Deemed a non-threat by the Exiles lab entrance 486 | -10/Mines | Discovered new exit (range 5) 565 | -10/Mines | Entered Exiles 565 | -10/Exiles | Accompanied by 2 allies 587 | -10/Exiles | Discovered new exit (range 14) 602 | -10/Exiles | Met 8R-AWN 618 | -10/Exiles | Met EX-HEX 649 | -10/Exiles | Met EX-BIN 667 | -10/Exiles | Aligned with FarCom system 668 | -10/Exiles | Given EX-Vault access code 711 | -10/Exiles | Opened EX-Vault 719 | -10/Exiles | Found Prototype Slashing Weapon 720 | -10/Exiles | Identified Longsword +1 725 | -10/Exiles | Found Prototype Special Weapon 725 | -10/Exiles | Identified Field Lobotomy Kit 753 | -10/Exiles | Warned to stay clear of 0b10 Research branches 785 | -10/Exiles | Met EX-DEC 791 | -10/Exiles | Learned location of Zion (-6) 914 | -10/Exiles | Visited The Gauntlet 1067 | -10/Exiles | Attacked by the Exiles 1089 | -10/Exiles | Core integrity fell below 50% 1100 | -10/Exiles | Core integrity fell below 20% 1103 | -10/Exiles | Destroyed by 8R-AWN with 8R-AWN's Boregun Last Messages --------------- 01094_ HV Slug penetrates Wall. 01096_ 8R-AWN unaffected by assimilation attempt. 01097_ Penetrated by HV Slug. 01097_ HV Slug penetrates Wall. 01097_ Penetrated by HV Slug. 01097_ HV Slug penetrates Wall. 01099_ Critical hit. 01099_ Com. Wheel destroyed. 01099_ Penetrated by HV Slug. 01099_ HV Slug penetrates Wall. 01099_ Penetrated by HV Slug. 01099_ HV Slug penetrates Wall. 01100_ Com. Wheel destroyed. 01101_ Penetrated by HV Slug. 01101_ HV Slug penetrates Wall. 01101_ Penetrated by HV Slug. 01101_ HV Slug penetrates Wall. 01103_ Penetrated by HV Slug. 01103_ HV Slug penetrates Machine. 01103_ Penetrated by HV Slug. Map ----- +----------------------------------------------------+ | ## #???????????????????????????????????????? | | ""## #?#########?????????????????????????????? | | #### #?#"""""""#?????????????????????????????? | | ???# #?#"""""""#?????????????????????????????? | | ???# #?#"""""""#?????????????????????????????? | | ??## ###"" """"#?????????????????????????????? | | ??#" """"#?????????????????????????????? | | ??#" """#?????????????????????????????? | | ??#" """#?????????????????????????????? | | ??#" """#?????????????????????????????? | | ??#" """#?????????????????????????????? | | ??#" """##????????????????????????????? | | ??## """""????????????????????????????? | | ???# """##????????????????????????????? | | ???#" "X" """""????????????????????????????? | | ???#" """ #?????????????????????????????? | | ???#" """""""""#?????????????????????????????? | | ??##" ###########?????????????????????????????? | | ?##"" #???????????????????????????????????????? | | ##"" #???????????????????????????????????????? | | """" ##??????????????????????????????????????? | | " "" ##???###########???????????????????????? | | " #####"""""""""####????????????????????? | | " """ "" #;##???????????????????? | | "" " ; #???????????????????? | | " "@ #?????????????????????? | | a #???????????#####?????? | | %%##?????????##" #?????? | | aaa ###???????#" #?????? | | """""" g a"""#??????##" ##????? | | ######""" o "#????### ###??? | | #????#####""" ##???# #### | | ?????????##""" ##?## #"" | | ??????????#"""" ### | | ?????????##"" ## | | ####??####"""" #### | | ####""" ""#?#"""""### | | """" #"""##?#######?? | | ######??????????? | | ##???????????????? | | " ##????????????????? | | " "" "" "#?????????????????? | | ""## ##""" " " ""#" "##?????????????????? | | "#### ######""" """##"""""""##??????????????????? | | ##??# #????###""""###########???????????????????? | | #??## ####???######?????????????????????????????? | | #??#! "!#??????????????????????????????????????? | | ???#" !#??????????????????????????????????????? | | ???#" "#??????????????????????????????????????? | | ???#!!""!"#??????????????????????????????????????? | +----------------------------------------------------+ Best States ------------- Heat Dissipation 25 Energy Generation 10 Energy Capacity 250 Matter Stores 300 Matter Capacity 300 Sight Range 16 Terrain Scan Range 16 Terrain Scan Density 10 Evasion (%) 40 Item Schematics ----------------- None Robot Schematics ------------------ None Fabricated ------------ Nothing Alien Tech Used ----------------- None Achievements -------------- None Challenges ------------ None Game ------ Seed AssaultCombatElectrolaser Manual? 0 Play Time 00:20:32 Cumulative 166.3 hours Start 2021.04.17 @ 18:30:37 End 2021.04.17 @ 19:04:50 Sessions 1 Manual Loads 0 Difficulty Rogue Special Mode None Game No. 83 Rogue 83 Adventurer 0 Explorer 0 Win Type - Total 5 Types 4/0/1/0/0/0/0/0/0 Lore% 67 Gallery% 76 Achievement% 58 Wizard Run 0 Options --------- ASCII 0 Keyboard 1 Movement Numpad Keybinds 0 Fullscreen 2 Font 18/SmallcapsGlow Map View 76x50 Tactical HUD 1 Map Filters NONE Filters NONE Steam 1 RUN: c5114208-5b23-42db-a846-af7e1f167c3a